bitfinex-derivatives/quotes_ETHF0:USTF0_20260306
["timestamp","ask_amount","ask_price","bid_price","bid_amount"]
[1772769527494,0.5629606,2084.1,2083.4,0.5449748]
[1772769533496,0.41145332,2084.1,2083.6,0.54109582]
[1772769533700,0.55695045,2084.2,2083.6,0.54109582]
[1772769534888,0.56258843,2084.2,2083.6,0.54109582]
[1772769535593,0.00563798,2084.2,2083.6,0.54109582]
[1772769536095,0.00563798,2084.2,2083.8,0.54109582]
[1772769537801,0.55695045,2084.5,2083.8,0.54109582]
[1772769538000,0.55695045,2084.5,2084.0,0.54109582]
[1772769538801,0.55695045,2084.5,2083.4,19.10187898]
[1772769538802,0.55695045,2084.4,2083.5,0.54109582]
[1772769540594,0.55695045,2084.4,2083.7,0.55611866]
[1772769549699,0.00537374,2084.5,2083.7,0.55611866]
[1772769550101,0.59355506,2084.5,2083.7,0.55611866]
[1772769556212,5.98431493,2084.4,2083.7,0.55611866]
[1772769556412,0.58818132,2084.4,2083.7,0.55611866]
[1772769556607,0.00537374,2084.5,2083.9,0.55611866]
[1772769556808,1.62044258,2085.1,2084.2,0.55611866]
[1772769557007,0.58818132,2085.1,2084.3,0.55611866]
[1772769557208,0.58818132,2085.1,2084.2,19.021]
[1772769557209,0.58818132,2085.6,2084.5,0.55611866]
[1772769557409,0.58818132,2085.6,2084.8,0.55611866]
[1772769557605,0.58818132,2085.9,2084.8,0.55611866]
[1772769557811,0.58818132,2085.7,2084.8,0.55611866]
[1772769558612,0.58818132,2085.6,2084.8,0.55611866]
[1772769560519,0.58818132,2085.5,2084.5,0.55611866]
[1772769562121,2.98738132,2085.5,2084.5,0.55611866]
[1772769562322,0.58818132,2085.4,2084.5,0.55611866]
[1772769562720,0.58818132,2085.4,2084.2,0.55611866]
[1772769563024,0.58818132,2085.2,2084.2,0.55611866]
[1772769563223,0.58818132,2085.2,2084.3,40.8]
[1772769563424,0.58818132,2085.2,2084.4,0.55611866]
[1772769563825,0.58818132,2085.1,2084.4,0.55611866]
[1772769568530,2.98738132,2085.1,2084.4,0.55611866]
[1772769569335,0.5908638,2085.0,2084.4,0.55611866]
[1772769569630,0.5908638,2084.8,2084.5,0.57721514]
[1772769569932,0.5908638,2084.8,2084.1,0.57721514]
[1772769570132,0.54871319,2084.6,2084.1,0.57721514]
[1772769570626,0.54871319,2084.4,2084.0,0.55099365]
[1772769570827,0.55464329,2084.4,2084.0,0.55099365]
[1772769571027,0.0059301,2084.4,2084.0,0.55099365]
[1772769573833,2.4051301,2084.4,2084.0,0.55099365]
[1772769575227,0.54871319,2084.2,2083.7,19.59199365]
[1772769575431,0.54871319,2084.2,2083.8,0.55099365]
[1772769576434,2.3992,2084.0,2083.8,0.55099365]
[1772769576936,2.3992,2083.9,2083.8,0.55099365]
[1772769577136,0.54871319,2084.2,2083.8,0.55099365]
[1772769577337,2.3992,2084.0,2083.8,0.55099365]
[1772769577733,0.54871319,2083.9,2083.6,0.55099365]
[1772769578037,0.54871319,2084.0,2083.6,0.55099365]
[1772769578436,2.3992,2083.9,2083.6,0.55099365]
[1772769580533,2.3992,2083.8,2083.6,0.55099365]
[1772769580738,0.54871319,2084.0,2083.6,0.55099365]
[1772769581037,2.3992,2083.9,2083.6,0.55099365]
[1772769581237,0.54871319,2084.0,2083.6,0.55099365]
[1772769581439,2.3992,2083.9,2083.6,0.55099365]
[1772769582040,2.3992,2083.8,2083.6,0.55099365]
[1772769582239,0.54871319,2084.0,2083.6,0.55099365]
[1772769582437,0.55464329,2084.4,2083.6,0.55099365]
[1772769582939,2.70918443,2084.2,2083.6,0.55099365]
[1772769583443,2.16047124,2084.1,2083.6,0.55099365]
[1772769583942,2.16047124,2083.9,2083.6,19.68399365]
[1772769584143,0.54871319,2084.0,2083.6,19.68399365]
[1772769584338,2.16047124,2083.8,2083.6,19.68399365]
[1772769584539,0.54871319,2084.0,2083.6,19.68399365]
[1772769585045,2.16047124,2083.8,2083.6,19.68399365]
[1772769585536,2.16047124,2083.7,2083.6,19.68399365]
[1772769585737,0.54871319,2084.0,2083.6,19.68399365]
[1772769585943,1.65323215,2083.8,2083.6,19.68399365]
[1772769586541,1.65323215,2083.7,2083.6,19.68399365]
[1772769586743,0.54871319,2084.0,2083.6,19.68399365]
[1772769586936,1.65323215,2083.8,2083.6,19.68399365]
[1772769587140,1.65323215,2083.8,2083.7,0.55099365]
[1772769587336,0.54871319,2084.0,2083.7,0.55099365]
[1772769587540,1.65323215,2083.8,2083.7,0.55099365]
[1772769588046,1.06545028,2083.8,2083.7,0.55099365]
[1772769588647,0.54871319,2084.2,2083.7,0.55099365]
[1772769588839,0.55464329,2084.4,2083.7,0.55099365]
[1772769591346,0.55464329,2084.4,2083.7,19.79799365]
[1772769593750,0.55464329,2084.4,2083.8,0.55099365]
[1772769597854,0.54871319,2084.8,2083.9,0.55099365]
[1772769598955,0.55253554,2084.8,2083.9,0.55099365]
[1772769601355,0.57748499,2084.6,2083.6,5.98130536]
[1772769601557,0.57748499,2084.3,2083.5,0.59171848]
[1772769601752,0.57748499,2084.3,2083.4,0.00387898]
[1772769601953,0.57748499,2084.3,2083.4,0.59559746]
[1772769602249,0.57748499,2084.3,2083.4,0.00387898]
[1772769602454,0.57748499,2084.1,2083.4,0.00387898]
[1772769602654,0.57748499,2084.1,2083.4,0.59559746]
[1772769603250,0.57748499,2084.5,2083.5,0.59171848]
[1772769603656,0.2219892,2084.5,2083.5,0.59171848]
[1772769604153,0.57748499,2084.3,2083.4,0.59559746]
[1772769604751,0.57748499,2084.1,2083.4,0.00387898]
[1772769606556,0.57748499,2084.0,2083.4,0.00387898]
[1772769608766,1.56386548,2084.1,2082.8,7.50731622]
[1772769608767,0.57748499,2083.8,2083.2,0.59171848]
[1772769608967,0.57748499,2083.8,2083.1,0.59171848]
[1772769609669,0.57748499,2083.8,2083.1,0.5964376]
[1772769610970,0.57748499,2083.8,2083.2,0.59171848]
[1772769619585,0.57748499,2084.0,2083.2,0.59171848]
[1772769622282,0.57748499,2083.8,2083.0,0.59171848]
[1772769623191,0.57748499,2083.8,2083.0,0.59561984]
[1772769624887,0.57748499,2083.8,2083.1,0.59171848]
[1772769625684,2.14135047,2083.8,2083.0,0.00390136]
[1772769625890,0.57748499,2083.5,2083.0,0.00390136]
[1772769626789,0.57748499,2083.5,2083.0,0.59561984]
[1772769629795,0.57748499,2083.5,2083.0,0.56294402]
[1772769630393,0.57748499,2083.5,2083.0,0.54419998]
[1772769630699,0.57748499,2083.5,2083.0,0.00390136]
[1772769631393,0.57748499,2083.5,2082.8,0.54029862]
[1772769632498,0.57748499,2083.5,2082.8,0.54569189]
[1772769634389,0.57748499,2083.5,2082.8,0.00539327]
[1772769634593,0.59190387,2083.3,2082.8,0.00539327]
[1772769634893,0.59704822,2083.3,2082.8,0.00539327]
[1772769635492,0.59704822,2083.3,2082.3,0.54029862]
[1772769635799,5.99885127,2083.2,2082.3,0.54029862]
[1772769635991,0.59190387,2083.0,2082.3,0.54029862]
[1772769636489,0.59190387,2083.0,2082.3,0.54476274]
[1772769637295,0.59190387,2082.7,2082.3,0.00446412]
[1772769637497,0.59190387,2082.5,2081.9,0.54029862]
[1772769638504,0.59190387,2082.5,2081.9,0.5437874]
[1772769639407,0.59190387,2082.3,2081.7,0.54029862]
[1772769639799,0.59190387,2082.3,2081.5,0.54029862]
[1772769640202,0.59190387,2082.3,2081.5,0.54465515]
[1772769643308,0.59190387,2082.3,2081.6,0.54029862]
[1772769643698,0.59190387,2082.3,2080.8,0.24027]
[1772769643699,0.59190387,2082.1,2081.2,0.54029862]
[1772769643905,0.59190387,2081.7,2080.9,0.54029862]
[1772769644599,0.59190387,2081.7,2081.0,0.54029862]
[1772769644807,0.59544286,2081.7,2081.0,0.54372293]
[1772769645404,0.59190387,2081.5,2081.0,0.00342431]
[1772769646710,0.59190387,2081.5,2080.8,0.54029862]
[1772769647399,0.59544286,2081.7,2081.1,0.54029862]
[1772769647600,0.59544286,2081.7,2081.1,0.54409647]
[1772769648211,0.59190387,2082.1,2081.5,0.54029862]
[1772769649108,0.59190387,2082.1,2081.2,0.54029862]
[1772769649301,0.59547939,2082.1,2081.2,0.54029862]
[1772769656709,0.00357552,2082.1,2081.2,0.54029862]
[1772769657110,0.59547939,2082.1,2081.2,0.54029862]
[1772769662414,0.58286639,2082.0,2081.2,0.54029862]
[1772769662610,0.58286639,2081.8,2080.9,0.58518856]
[1772769662815,0.58286639,2081.4,2080.7,0.58518856]
[1772769663917,0.58286639,2081.4,2080.7,0.58893591]
[1772769665016,0.58286639,2081.8,2080.7,0.58893591]
[1772769668524,0.58286639,2081.9,2080.7,0.58893591]
[1772769668720,0.58286639,2081.9,2080.9,0.58518856]
[1772769669715,0.58644191,2082.1,2080.9,0.58518856]
[1772769669920,0.58644191,2082.1,2081.0,0.58518856]
[1772769672318,0.00357552,2082.1,2081.2,0.58518856]
[1772769672927,0.58286639,2082.0,2081.2,0.58518856]
[1772769673515,0.58644191,2082.1,2081.2,0.58518856]
[1772769673722,0.58286639,2082.4,2081.5,0.58518856]
[1772769674222,0.58286639,2082.6,2081.7,0.58518856]
[1772769674824,0.58286639,2082.4,2081.7,0.58518856]
[1772769675428,0.58833231,2082.6,2081.8,0.58518856]
[1772769676927,0.00546592,2082.6,2081.9,0.58518856]
[1772769677128,0.58286639,2082.9,2081.9,0.58518856]
[1772769678129,0.5867924,2082.9,2081.9,0.58518856]
[1772769679431,0.5867924,2082.9,2082.1,0.58518856]
[1772769679933,0.5867924,2082.9,2082.3,0.58518856]
[1772769680133,0.5867924,2082.9,2082.3,0.59044496]
[1772769681234,0.5867924,2082.9,2082.3,0.0052564]
[1772769681430,0.5867924,2082.9,2081.9,0.58518856]
[1772769682523,0.5867924,2082.9,2082.0,0.58518856]
[1772769686831,0.00392601,2082.9,2082.0,0.58518856]
[1772769688131,0.58286639,2083.5,2082.2,0.58518856]
[1772769689136,0.58876121,2083.5,2082.2,0.58518856]
[1772769690341,0.00589482,2083.5,2082.4,0.54842527]
[1772769690539,0.00589482,2083.5,2082.6,0.54842527]
[1772769690940,0.00589482,2083.5,2082.8,0.54842527]
[1772769693743,0.57572177,2083.5,2082.8,0.54842527]
[1772769693946,0.57572177,2083.5,2083.0,0.54842527]
[1772769696146,0.57572177,2083.5,2082.8,20.30542527]
[1772769697547,0.57572177,2083.5,2082.8,20.31342527]
[1772769699046,0.57572177,2083.5,2082.8,0.54842527]
[1772769699239,0.57572177,2083.5,2082.8,20.32342527]
[1772769699645,0.57572177,2083.5,2082.8,19.775]
[1772769700346,0.57572177,2083.5,2082.5,20.33042527]
[1772769701251,0.57572177,2083.5,2082.5,0.54842527]
[1772769705952,0.57572177,2083.5,2082.5,20.35642527]
[1772769706648,0.57572177,2083.5,2082.6,0.54842527]
[1772769709752,0.00589482,2083.5,2082.6,0.54842527]
[1772769710152,0.00589482,2083.5,2082.6,6.52973063]
[1772769710352,0.56982695,2083.7,2082.8,0.54842527]
[1772769710551,0.56982695,2084.1,2082.8,0.54842527]
[1772769711254,0.57466859,2084.1,2082.8,0.54842527]
[1772769711450,0.57466859,2084.1,2082.9,0.54842527]
[1772769713858,0.56982695,2083.9,2083.0,0.54842527]
[1772769715754,0.56982695,2083.7,2082.7,0.54842527]
[1772769715954,4.5836462,2083.7,2082.7,0.54842527]
[1772769716156,0.56982695,2083.6,2082.7,0.54842527]
[1772769719460,0.56982695,2083.4,2082.7,0.54842527]
[1772769719859,0.56982695,2083.4,2082.4,5.98130536]
[1772769720059,0.56982695,2083.4,2082.4,0.59318357]
[1772769720957,0.59657692,2083.2,2082.4,0.59318357]
[1772769721357,0.59657692,2083.2,2082.1,46.78130536]
[1772769721358,0.59657692,2083.0,2082.2,0.59318357]
[1772769722463,0.59657692,2083.4,2082.2,0.59318357]
[1772769722664,0.59657692,2083.6,2082.7,0.59318357]
[1772769722965,0.59657692,2083.6,2082.9,0.59318357]
[1772769723264,12.29870432,2084.1,2082.9,0.59318357]
[1772769723265,0.59657692,2083.8,2082.9,0.59318357]
[1772769727966,0.59657692,2083.7,2082.7,0.59318357]
[1772769729267,0.59657692,2083.5,2082.5,0.59318357]
[1772769729463,0.59657692,2083.4,2082.5,0.59318357]
[1772769731465,0.59657692,2083.2,2082.3,0.59318357]
[1772769743478,0.59657692,2083.3,2082.3,0.59318357]
[1772769744781,0.59657692,2083.3,2082.5,0.59318357]
[1772769745484,4.61428814,2083.7,2082.5,0.59318357]
[1772769745678,0.59657692,2083.6,2082.7,0.59318357]
[1772769748482,0.59657692,2084.0,2082.8,0.59318357]
[1772769748682,0.59657692,2084.0,2082.9,0.59318357]
[1772769748882,0.59657692,2084.0,2083.1,0.59318357]
[1772769749581,0.00484164,2084.1,2083.1,0.59318357]
[1772769749784,0.55351888,2084.1,2083.1,0.59318357]
[1772769749981,0.55351888,2084.1,2083.2,40.8]
[1772769750181,0.55351888,2084.1,2083.3,0.57182396]
[1772769751084,0.55351888,2084.1,2083.3,20.30682396]
[1772769751280,0.55351888,2084.1,2083.3,0.57182396]
[1772769751484,0.55351888,2084.1,2083.1,0.57182396]
[1772769751885,0.55351888,2084.1,2083.1,41.37182396]
[1772769752386,0.55351888,2084.1,2083.2,0.57182396]
[1772769752981,0.55351888,2084.1,2083.0,0.57182396]
[1772769752982,0.57533021,2083.9,2083.0,0.57182396]
[1772769755580,0.00484164,2084.1,2083.3,0.57182396]
[1772769756586,0.57533021,2084.4,2083.3,0.57182396]
[1772769756782,0.57533021,2084.9,2083.4,0.57182396]
[1772769756982,0.57533021,2084.9,2083.6,0.57182396]
[1772769757195,0.57533021,2084.9,2083.7,0.57182396]
[1772769757690,0.57976795,2084.9,2083.7,0.57770359]
[1772769760101,0.57533021,2084.7,2083.8,20.31382396]
[1772769761210,0.57533021,2084.7,2083.7,0.57770359]
[1772769767913,0.57533021,2084.7,2083.9,0.57182396]
[1772769768614,0.57533021,2084.7,2083.7,0.57770359]
[1772769775621,0.57976795,2084.9,2083.9,0.57182396]
[1772769778319,0.57976795,2084.9,2084.1,0.57182396]
[1772769779414,0.57976795,2084.9,2084.0,0.57182396]
[1772769780421,0.5549237,2084.7,2083.7,0.58144773]
[1772769780723,0.5549237,2084.7,2083.7,0.00587963]
[1772769781325,0.5549237,2084.7,2083.7,0.58144773]
[1772769782022,0.5549237,2084.5,2083.7,0.00587963]
[1772769782225,0.5549237,2084.3,2083.4,0.5755681]
[1772769782423,0.5549237,2084.1,2083.1,0.5755681]
[1772769782624,0.5549237,2084.1,2083.0,0.5755681]
[1772769783226,0.5549237,2084.1,2083.0,0.57988104]
[1772769784630,0.5549237,2084.1,2083.2,0.5755681]
[1772769795239,0.5549237,2084.1,2083.1,0.5755681]
[1772769808653,0.5549237,2084.1,2083.2,0.5755681]
[1772769810948,0.56032083,2084.0,2083.2,0.5755681]
[1772769822968,0.56032083,2084.0,2083.3,19.7]
[1772769823169,0.56032083,2084.0,2083.3,20.23787781]
[1772769823870,0.56032083,2084.0,2083.3,0.53787781]
[1772769824172,0.56032083,2084.0,2083.3,20.24387781]
[1772769825865,0.56032083,2084.0,2083.3,0.53787781]
[1772769826071,0.56032083,2084.0,2083.3,20.25887781]
[1772769828570,0.56032083,2084.0,2083.2,0.53787781]
[1772769830272,0.56032083,2084.0,2083.0,47.32349611]
[1772769830466,0.56032083,2083.6,2082.8,5.98130536]
[1772769830670,0.56032083,2083.3,2082.6,0.53787781]
[1772769831472,0.56032083,2083.5,2082.6,0.53787781]
[1772769831765,0.00488656,2083.3,2082.6,0.54267437]
[1772769833271,0.56032083,2083.9,2083.2,0.53787781]
[1772769833572,0.56032083,2084.0,2083.4,0.53787781]
[1772769834370,0.56475743,2084.0,2083.4,0.53787781]
[1772769839376,0.56475743,2084.0,2083.1,0.53787781]
[1772769839673,0.56475743,2084.0,2083.2,20.35587781]
[1772769840175,0.56475743,2084.0,2083.3,0.58488302]
[1772769841676,0.56475743,2084.0,2083.2,19.828]
[1772769842378,0.56475743,2084.0,2083.2,20.41288302]
[1772769843581,0.56475743,2084.0,2083.3,0.58488302]
[1772769844782,0.56475743,2084.0,2083.0,19.839]
[1772769844983,0.56475743,2084.0,2083.1,0.58488302]
[1772769853782,0.55318186,2084.2,2083.5,0.58488302]
[1772769854788,0.55934251,2084.2,2083.6,0.58488302]
[1772769855785,0.55934251,2084.2,2083.8,0.58488302]
[1772769856089,0.55318186,2084.6,2083.8,0.58488302]
[1772769856480,0.55318186,2084.6,2083.8,41.38488302]
[1772769856880,0.55868251,2084.6,2083.8,41.38488302]
[1772769857281,0.55868251,2084.6,2083.8,0.58488302]
[1772769860691,0.55868251,2084.6,2083.7,0.58488302]
[1772769860692,0.55318186,2084.4,2083.7,0.58488302]
[1772769860984,0.55318186,2084.4,2083.5,0.58488302]
[1772769861190,0.55318186,2084.2,2083.5,0.58488302]
[1772769862092,0.55318186,2084.0,2083.3,0.58488302]
[1772769862687,0.55318186,2084.1,2083.3,2.14879207]
[1772769862892,0.55318186,2084.1,2083.6,0.58488302]
[1772769863387,0.55318186,2084.5,2084.0,0.58488302]
[1772769864090,0.00550065,2084.6,2084.0,0.58488302]
[1772769868091,0.55318186,2084.5,2084.0,0.58488302]
[1772769871294,0.54719568,2084.6,2084.0,0.58488302]
[1772769871493,0.00550065,2084.6,2084.2,0.5690538]
[1772769871700,0.54169503,2085.1,2084.4,0.5690538]
[1772769872800,0.54710196,2085.1,2084.4,0.5690538]
[1772769875398,0.54169503,2084.9,2084.2,0.57413111]
[1772769877202,0.54169503,2084.9,2084.2,0.00507731]
[1772769877403,0.54169503,2084.9,2084.2,0.57413111]
[1772769879007,0.54169503,2084.7,2084.2,0.00507731]
[1772769879202,0.54169503,2084.7,2084.2,0.57413111]
[1772769884403,0.54169503,2084.7,2084.0,0.5690538]
[1772769885508,0.54169503,2084.7,2084.0,0.57361091]
[1772769886009,4.56263137,2084.9,2084.3,0.5690538]
[1772769886200,0.54169503,2084.8,2084.5,0.5690538]
[1772769889013,0.54169503,2085.0,2084.5,0.5690538]
[1772769890708,0.54169503,2085.0,2084.1,0.5690538]
[1772769899520,0.54169503,2085.0,2084.3,0.5690538]
[1772769900022,0.00238464,2085.1,2084.7,0.58264897]
[1772769900922,4.26067634,2085.5,2084.3,25.90230536]
[1772769900923,4.61332285,2085.5,2084.9,0.58264897]
[1772769901124,0.59238651,2085.5,2084.9,0.58264897]
[1772769902022,0.59679091,2085.5,2084.9,0.58264897]
[1772769902217,6.87938651,2085.7,2085.0,1.56390905]
[1772769902423,0.59238651,2085.9,2085.1,0.58264897]
[1772769903020,0.59238651,2085.9,2085.3,0.58264897]
[1772769903316,0.59708238,2085.9,2085.3,0.58264897]
[1772769903517,0.00469587,2085.9,2085.5,0.58264897]
[1772769903718,0.00469587,2085.9,2085.5,0.58794319]
[1772769904523,0.59238651,2086.3,2085.7,0.58264897]
[1772769905523,0.59592786,2086.3,2085.7,0.58264897]
[1772769905918,0.59592786,2086.3,2085.5,0.00529422]
[1772769905919,0.59238651,2086.0,2085.5,0.00529422]
[1772769906128,0.59238651,2085.6,2085.1,0.58264897]
[1772769906417,0.59238651,2085.6,2085.0,40.8]
[1772769907122,0.59238651,2085.6,2085.0,0.58740847]
[1772769909023,0.59238651,2085.4,2085.0,0.0047595]
[1772769909725,0.59238651,2085.4,2085.0,0.58740847]
[1772769909921,0.59238651,2085.8,2085.1,0.58264897]
[1772769910721,6.87838651,2086.0,2085.3,0.58264897]
[1772769911022,0.59238651,2086.2,2085.5,0.58264897]
[1772769911433,0.59238651,2086.2,2085.7,0.58264897]
[1772769912935,0.00354135,2086.3,2085.7,0.58264897]
[1772769913431,0.59238651,2086.6,2085.7,0.58264897]
[1772769914632,0.59794525,2086.6,2085.7,0.58264897]
[1772769915642,0.59794525,2086.6,2085.9,0.58264897]
[1772769917237,0.59794525,2086.6,2085.8,40.8]
[1772769917638,0.59794525,2086.6,2085.8,41.38264897]
[1772769918136,0.59794525,2086.6,2085.5,0.58264897]
[1772769918339,0.59238651,2086.4,2085.5,0.58264897]
[1772769919635,0.59238651,2086.4,2085.3,0.58264897]
[1772769921935,0.59238651,2086.2,2085.3,0.58264897]
[1772769924037,0.59238651,2086.5,2085.3,0.58264897]
[1772769924239,0.59238651,2086.5,2085.4,0.58264897]
[1772769925039,0.59794525,2086.6,2085.6,0.58264897]
[1772769925535,0.00555874,2086.6,2085.6,0.58264897]
[1772769926136,0.59794525,2086.6,2085.6,0.58264897]
[1772769931245,0.54888579,2086.4,2085.6,0.58264897]
[1772769931548,0.54888579,2086.2,2085.2,0.56285229]
[1772769933847,0.54888579,2086.0,2085.2,0.56285229]
[1772769934147,0.54888579,2086.0,2085.1,0.56285229]
[1772769936245,0.54888579,2086.0,2085.0,0.56761179]
[1772769936550,4.56982213,2085.8,2085.0,0.0047595]
[1772769936750,0.97399145,2085.7,2085.0,0.0047595]
[1772769936952,0.54888579,2085.6,2085.0,0.0047595]
[1772769939450,0.54888579,2085.6,2085.0,0.56761179]
[1772769942044,0.54888579,2085.6,2085.0,0.0047595]
[1772769942755,0.54888579,2085.6,2085.0,0.56761179]
[1772769944958,0.54888579,2085.5,2084.5,0.56285229]
[1772769946056,0.54888579,2085.5,2084.5,0.56804446]
[1772769961171,0.54888579,2085.5,2084.6,0.54528907]
[1772769961968,0.54888579,2085.5,2084.6,20.42428907]
[1772769962369,0.54888579,2085.5,2084.7,0.54528907]
[1772769966573,0.59066991,2085.3,2084.5,0.00519217]
[1772769969475,0.59066991,2085.1,2084.5,0.00519217]
[1772769969773,0.59433369,2085.1,2084.5,0.00519217]
[1772769973878,0.59433369,2085.1,2084.1,0.54528907]
[1772769974178,0.59066991,2084.9,2083.9,0.54528907]
[1772769974378,0.59066991,2084.9,2084.0,41.34528907]
[1772769975076,0.59066991,2084.9,2084.1,0.54528907]
[1772769975670,0.59433369,2085.1,2084.1,0.54528907]
[1772769976079,0.00366378,2085.1,2084.3,0.54528907]
[1772769976284,0.59066991,2085.4,2084.5,0.54528907]
[1772769976676,0.59066991,2085.4,2084.5,20.51228907]
[1772769977384,0.59473197,2085.4,2084.5,20.51228907]
[1772769977680,0.59473197,2085.4,2084.6,0.54528907]
[1772769994185,0.00406206,2085.4,2084.6,0.54528907]
[1772769994491,0.00253367,2085.4,2085.0,0.58636948]
[1772769994692,0.5694073,2085.4,2084.9,2.14744241]
[1772769994991,0.5694073,2085.4,2084.8,0.58636948]
[1772769996492,0.00253367,2085.4,2085.0,0.58636948]
[1772769996792,0.56687363,2085.8,2085.4,0.58636948]
[1772769997594,0.57230249,2085.8,2085.4,0.58636948]
[1772770000896,0.57230249,2085.8,2085.1,2.14744241]
[1772770001390,0.56687363,2085.6,2084.7,67.33667484]
[1772770001591,0.56687363,2085.6,2084.8,0.58636948]
[1772770003097,0.56687363,2085.2,2084.5,40.8]
[1772770003295,0.56687363,2085.0,2084.4,0.58636948]
[1772770003500,0.56687363,2084.8,2084.2,20.55636948]
[1772770003701,0.56687363,2084.8,2084.2,0.58636948]
[1772770008704,0.56687363,2085.3,2084.2,0.58636948]
[1772770010106,0.56687363,2085.3,2084.4,0.58636948]
[1772770011409,0.56687363,2085.1,2084.1,20.60436948]
[1772770011709,0.56687363,2085.1,2084.2,0.58636948]
[1772770021618,0.56687363,2085.1,2084.0,0.58076375]
[1772770021817,0.56687363,2085.1,2084.1,0.57629794]
[1772770026616,0.56687363,2085.1,2084.5,0.57629794]
[1772770026817,0.54252666,2085.0,2084.2,0.57629794]
[1772770027020,0.54252666,2084.8,2084.2,0.57629794]
[1772770028728,0.23977,2085.2,2084.0,0.00446581]
[1772770028729,0.54252666,2084.6,2084.0,0.00446581]
[1772770028919,0.54252666,2084.2,2083.3,7.54320735]
[1772770029122,0.54252666,2084.0,2083.2,41.37629794]
[1772770029423,4.54508552,2084.4,2083.7,1.56190199]
[1772770029620,0.54252666,2084.5,2083.6,0.57629794]
[1772770029928,0.54252666,2084.3,2083.6,0.00529954]
[1772770030122,0.54252666,2084.1,2083.6,0.00529954]
[1772770031322,0.54252666,2084.1,2083.2,40.8]
[1772770031716,0.54252666,2084.1,2082.8,0.57629794]
[1772770031717,0.54252666,2083.9,2082.8,0.57629794]
[1772770031919,0.54252666,2083.7,2082.6,0.57629794]
[1772770032118,0.54252666,2083.7,2082.6,0.58125175]
[1772770035326,0.54252666,2083.5,2082.6,0.00495381]
[1772770035530,0.54252666,2083.3,2082.6,0.00495381]
[1772770036024,0.54252666,2083.3,2082.4,40.8]
[1772770036232,0.54252666,2083.3,2082.3,0.57629794]
[1772770036427,0.54252666,2083.3,2082.0,0.57629794]
[1772770036826,0.54252666,2083.3,2082.2,0.57629794]
[1772770037029,0.54252666,2083.3,2082.2,0.5802868]
[1772770037429,0.54252666,2083.3,2082.2,0.00398886]
[1772770046041,0.54252666,2083.1,2082.2,0.5802868]
[1772770051344,6.29,2083.4,2082.2,0.5802868]
[1772770051538,0.58087556,2083.3,2082.2,0.5802868]
[1772770055845,0.58087556,2083.1,2082.2,0.00398886]
[1772770058138,4.58343442,2083.1,2082.2,0.00398886]
[1772770058341,1.00350285,2083.0,2082.2,0.00398886]
[1772770058541,0.58087556,2082.9,2082.2,0.00398886]
[1772770061049,4.58343442,2082.9,2082.2,0.00398886]
[1772770061251,0.58087556,2082.7,2082.2,0.00398886]
[1772770061948,0.58087556,2082.7,2082.2,0.57393669]
[1772770062249,0.00429219,2083.0,2082.2,0.57393669]
[1772770063442,0.58087556,2083.3,2082.2,0.57393669]
[1772770063646,0.58087556,2083.4,2082.4,0.56994783]
[1772770063855,0.58087556,2083.6,2082.5,0.56994783]
[1772770064249,0.58087556,2083.6,2082.7,0.56994783]
[1772770064551,0.58480098,2083.6,2082.7,0.56994783]
[1772770065146,0.00392542,2083.6,2082.7,0.56994783]
[1772770065545,0.00392542,2083.6,2082.8,0.56994783]
[1772770066750,0.58087556,2084.0,2083.0,0.56994783]
[1772770067754,0.58586639,2084.0,2083.0,0.56994783]
[1772770081357,0.58822438,2083.8,2083.0,0.56994783]
[1772770087858,0.58822438,2083.9,2083.0,0.56994783]
[1772770088162,0.59321521,2084.0,2083.0,0.56994783]
[1772770092070,0.59321521,2084.0,2083.1,0.5807969]
[1772770093173,0.59321521,2084.0,2083.2,0.5807969]
[1772770093370,0.83312521,2084.0,2083.1,6.00088061]
[1772770093571,0.58822438,2083.9,2083.1,0.5807969]
[1772770097974,0.58822438,2084.3,2083.4,0.5807969]
[1772770098175,0.58822438,2084.4,2083.6,0.5807969]
[1772770099073,0.59297185,2084.4,2083.6,0.5807969]
[1772770099470,0.58822438,2085.0,2083.9,0.5807969]
[1772770099667,0.58822438,2085.0,2084.1,0.5807969]
[1772770099871,0.42467829,2084.9,2083.9,0.5807969]
[1772770100071,0.58822438,2084.8,2084.0,0.5807969]
[1772770100471,0.59228555,2084.8,2084.0,0.58703166]
[1772770101873,0.58822438,2084.6,2083.6,0.5807969]
[1772770102876,0.58822438,2084.6,2083.6,0.5861078]
[1772770103075,0.58822438,2084.6,2083.6,0.0053109]
[1772770103371,0.58822438,2084.5,2083.6,0.0053109]
[1772770103676,0.58822438,2084.5,2083.6,0.5861078]
[1772770108679,4.24238886,2084.7,2083.6,0.5861078]
[1772770108680,0.58822438,2084.7,2083.6,0.5861078]
[1772770108884,0.59228555,2084.8,2083.8,0.5807969]
[1772770109180,0.59228555,2084.8,2084.0,0.5807969]
[1772770115476,0.00406117,2084.8,2084.0,0.5807969]
[1772770115680,0.57221554,2084.8,2084.0,0.5807969]
[1772770118887,0.00406117,2084.8,2084.0,0.5807969]
[1772770119386,0.56815437,2085.5,2084.0,0.5807969]
[1772770119586,0.56815437,2085.5,2084.1,0.57711878]
[1772770119983,0.56815437,2085.3,2084.1,0.57711878]
[1772770120383,0.57175133,2085.3,2084.1,0.57711878]
[1772770121080,0.23977,2085.2,2084.1,0.57711878]
[1772770121283,0.56815437,2085.1,2084.1,0.57711878]
[1772770123388,0.23977,2085.2,2083.7,0.57711878]
[1772770123389,0.56815437,2084.7,2083.7,0.57711878]
[1772770123591,0.56815437,2084.7,2083.6,0.58242968]
[1772770124586,0.56815437,2084.4,2083.6,0.58242968]
[1772770125588,0.56815437,2084.2,2083.6,0.58242968]
[1772770132590,0.56815437,2084.0,2083.4,0.57711878]
[1772770133594,0.56815437,2084.0,2083.4,0.58311243]
[1772770137599,0.56815437,2084.2,2083.5,0.57711878]
[1772770139397,0.56815437,2084.2,2083.6,40.8]
[1772770139597,0.56815437,2084.2,2083.7,0.57711878]
[1772770140797,0.57503311,2084.6,2083.7,0.57711878]
[1772770142099,1.56325362,2084.7,2083.6,40.8]
[1772770142100,0.57503311,2084.4,2083.6,40.8]
[1772770142292,0.57503311,2084.4,2083.6,41.37000808]
[1772770143401,0.57503311,2084.2,2083.4,1.56924727]
[1772770143599,0.57503311,2084.2,2083.5,0.57000808]
[1772770152703,1.56325362,2083.9,2083.4,0.00599365]
[1772770152907,0.57503311,2083.6,2083.0,20.129]
[1772770153109,0.57503311,2083.6,2083.1,0.57000808]
[1772770153312,0.57503311,2083.9,2083.3,0.57000808]
[1772770153613,0.57503311,2083.9,2083.5,0.57000808]
[1772770153811,0.57916337,2083.9,2083.5,0.5761294]
[1772770155015,0.00413026,2083.9,2083.5,0.5761294]
[1772770155212,0.57503311,2084.1,2083.5,0.5761294]
[1772770156215,0.58043363,2084.1,2083.5,0.5761294]
[1772770158012,0.58043363,2084.1,2083.5,0.00612132]
[1772770158216,0.58043363,2084.1,2083.2,0.57000808]
[1772770158510,0.57503311,2083.9,2083.0,20.69900808]
[1772770159215,0.57503311,2083.9,2083.0,20.70350334]
[1772770164020,0.57503311,2083.9,2083.0,0.57450334]
[1772770164620,0.57503311,2083.8,2083.0,0.57450334]